bitfinex/quotes_BTCUSD_20241014
["timestamp","ask_amount","ask_price","bid_price","bid_amount"]
[1728881464473,0.002646,64384.0,64383.0,0.68016407]
[1728881464706,0.002646,64384.0,64383.0,0.68216407]
[1728881464959,0.001644,64400.0,64399.0,0.155281]
[1728881465228,0.001644,64400.0,64399.0,0.18721332]
[1728881465465,0.001644,64400.0,64399.0,0.19362741]
[1728881465685,0.001644,64400.0,64399.0,0.18098257]
[1728881465917,0.001644,64400.0,64399.0,0.19362725]
[1728881466170,0.001644,64400.0,64399.0,0.21498065]
[1728881466412,0.002644,64400.0,64399.0,0.19662725]
[1728881466642,0.001644,64400.0,64399.0,0.19362725]
[1728881466896,0.001644,64400.0,64399.0,0.19662725]
[1728881466897,0.002644,64400.0,64399.0,0.19662725]
[1728881467373,0.002644,64400.0,64399.0,0.179426]
[1728881467591,0.002644,64400.0,64399.0,0.18895987]
[1728881467807,0.002644,64400.0,64399.0,0.20160447]
[1728881469770,0.002644,64400.0,64399.0,0.21340689]
[1728881471127,0.002644,64400.0,64399.0,0.21339653]
[1728881472190,0.002644,64400.0,64399.0,0.20159411]
[1728881474775,0.002644,64400.0,64399.0,0.36281812]
[1728881478614,0.002644,64400.0,64399.0,0.36282076]
[1728881479919,0.002644,64400.0,64399.0,0.3725473]
[1728881481289,0.002644,64400.0,64399.0,0.3877899]
[1728881481510,0.002644,64400.0,64399.0,0.3725473]
[1728881481731,0.002644,64400.0,64399.0,0.48285206]
[1728881481960,0.002644,64400.0,64399.0,0.3877899]
[1728881482223,0.002644,64400.0,64399.0,0.34065001]
[1728881482479,0.002644,64400.0,64399.0,0.37807973]
[1728881482686,0.002644,64400.0,64399.0,0.49280533]
[1728881483337,0.1142,64408.0,64407.0,0.155262]
[1728881483576,0.1142,64408.0,64407.0,0.17743829]
[1728881483842,0.1142,64408.0,64407.0,0.1936611]
[1728881485471,0.1142,64408.0,64407.0,0.3701511]
[1728881485472,0.003,64408.0,64407.0,0.3701511]
[1728881485719,0.004,64408.0,64407.0,0.3761511]
[1728881486431,0.003,64408.0,64407.0,0.53082873]
[1728881486645,0.001644,64410.0,64409.0,0.155257]
[1728881486854,0.001644,64410.0,64409.0,0.45209022]
[1728881487062,0.001644,64410.0,64409.0,0.48377656]
[1728881487537,0.001644,64410.0,64409.0,0.48505097]
[1728881489136,0.002644,64410.0,64409.0,0.49605097]
[1728881489350,0.002644,64410.0,64409.0,0.49477656]
[1728881489773,0.003644,64410.0,64409.0,0.50877656]
[1728881490253,0.003644,64410.0,64409.0,0.50877487]
[1728881490480,0.003644,64410.0,64409.0,0.41371271]
[1728881492233,0.003644,64410.0,64409.0,0.41371273]
[1728881495596,0.086144,64410.0,64409.0,0.41371273]
[1728881496936,0.003644,64410.0,64409.0,0.41371273]
[1728881497172,0.003644,64410.0,64409.0,0.41372408]
[1728881498330,0.07433644,64412.0,64409.0,0.25846708]
[1728881498548,0.07433644,64412.0,64411.0,0.155252]
[1728881498812,0.07433644,64412.0,64411.0,0.37252752]
[1728881499038,0.07433644,64412.0,64411.0,0.38865933]
[1728881499766,0.07533644,64412.0,64411.0,0.40265933]
[1728881500696,0.07633644,64412.0,64411.0,0.40265933]
[1728881501207,0.07533644,64412.0,64411.0,0.4026733]
[1728881501430,0.07633644,64412.0,64411.0,0.41167322]
[1728881501667,0.07633644,64412.0,64411.0,0.41167419]
[1728881504216,0.002,64412.0,64411.0,0.41167419]
[1728881504491,0.002,64412.0,64411.0,0.51367419]
[1728881504727,0.002,64412.0,64411.0,0.46060782]
[1728881504958,0.002,64412.0,64411.0,0.5166809]
[1728881505618,0.002,64412.0,64411.0,0.55904035]
[1728881506968,0.002822,64412.0,64411.0,0.55904035]
[1728881507844,0.002822,64412.0,64411.0,0.56104035]
[1728881508517,0.00063511,64418.0,64417.0,0.25030016]
[1728881508742,0.00063511,64418.0,64417.0,0.48669468]
[1728881508962,0.00063511,64418.0,64417.0,0.50275447]
[1728881509396,0.00063511,64418.0,64417.0,0.40769231]
[1728881509658,0.11533511,64418.0,64417.0,0.40769231]
[1728881509847,0.11633511,64418.0,64417.0,0.42269231]
[1728881511166,0.11633511,64418.0,64417.0,0.2614683]
[1728881511388,0.19633511,64418.0,64417.0,0.1062303]
[1728881511610,0.19633511,64418.0,64417.0,0.2614683]
[1728881511848,0.19633511,64418.0,64417.0,0.23021324]
[1728881512319,0.19633511,64418.0,64417.0,0.22173984]
[1728881512959,0.19633511,64418.0,64417.0,0.25301299]
[1728881513398,0.19633511,64418.0,64417.0,0.03105979]
[1728881513616,0.19633511,64418.0,64417.0,0.18629779]
[1728881514259,0.19633511,64418.0,64417.0,0.25197404]
[1728881514480,0.19633511,64418.0,64417.0,0.21319208]
[1728881514710,0.19633511,64418.0,64417.0,0.23669251]
[1728881514919,0.19633511,64418.0,64417.0,0.25198401]
[1728881517624,0.16133004,64418.0,64417.0,0.25198401]
[1728881518070,0.16133004,64418.0,64417.0,0.25199242]
[1728881520480,0.16215204,64418.0,64417.0,0.41321643]
[1728881520954,0.16215204,64418.0,64417.0,0.37880139]
[1728881521228,0.16215204,64418.0,64417.0,0.39457685]
[1728881521914,0.001822,64418.0,64417.0,0.39457685]
[1728881524339,0.001822,64418.0,64417.0,0.36016233]
[1728881524558,0.001822,64418.0,64417.0,0.4041356]
[1728881525907,0.192222,64418.0,64417.0,0.4041356]
[1728881526390,0.192222,64418.0,64417.0,0.24291159]
[1728881526866,0.192222,64418.0,64417.0,0.08767359]
[1728881527775,0.192222,64418.0,64417.0,0.09932671]
[1728881528029,0.21654451,64418.0,64417.0,0.08490602]
[1728881528248,0.21654451,64418.0,64417.0,0.09443209]
[1728881528462,0.21654451,64418.0,64417.0,0.10707342]
[1728881529411,0.37178051,64418.0,64417.0,0.10707342]
[1728881529621,0.37178051,64418.0,64417.0,0.06025562]
[1728881529830,0.37178051,64418.0,64417.0,0.0449723]
[1728881530049,0.44144047,64418.0,64417.0,0.0449723]
[1728881530313,0.44043895,64418.0,64417.0,0.01564132]
[1728881530558,0.37178051,64418.0,64417.0,0.02264132]
[1728881530991,0.73017621,64418.0,64417.0,0.01564132]
[1728881531201,0.46584267,64418.0,64417.0,0.01564132]
[1728881531416,0.53549602,64418.0,64417.0,0.01264132]
[1728881531665,0.46584267,64418.0,64417.0,0.01264132]
[1728881531901,0.51382358,64418.0,64417.0,0.01264132]
[1728881532321,0.58148937,64418.0,64417.0,0.01264132]
[1728881532566,0.58748937,64418.0,64417.0,0.01264132]
[1728881532781,0.58748937,64418.0,64417.0,0.01564132]
[1728881533416,0.2912103,64418.0,64417.0,0.01564132]
[1728881533634,0.197222,64418.0,64417.0,0.2163712]
[1728881533862,0.006822,64418.0,64417.0,0.65245893]
[1728881534079,0.04808788,64435.0,64424.0,0.155221]
[1728881534302,0.23275842,64431.0,64430.0,0.155207]
[1728881534522,0.001648,64435.0,64434.0,0.155197]
[1728881534740,0.001648,64435.0,64434.0,0.06038043]
[1728881534951,0.001648,64435.0,64434.0,0.06188539]
[1728881535168,0.001648,64435.0,64434.0,0.20544478]
[1728881535385,0.001648,64435.0,64434.0,0.37829949]
[1728881535595,0.001648,64435.0,64434.0,0.23612252]
[1728881536037,0.001648,64435.0,64434.0,0.07314943]
[1728881536244,0.262143,64435.0,64434.0,0.05622816]
[1728881536464,0.181948,64435.0,64434.0,0.04097453]
[1728881536719,0.36146092,64435.0,64434.0,0.04342119]
[1728881536934,0.36246092,64435.0,64434.0,0.05742119]
[1728881537380,0.36246092,64435.0,64425.0,0.01162837]
[1728881537381,0.005,64432.0,64425.0,0.01162837]
[1728881537597,0.005,64432.0,64424.0,0.23275842]
[1728881537598,0.37486207,64425.0,64424.0,0.23275842]
[1728881538037,0.155225,64423.0,64417.0,0.001644]
[1728881538252,0.21964307,64425.0,64417.0,0.001644]
[1728881538253,0.155226,64422.0,64418.0,0.01525271]
[1728881538484,0.155231,64420.0,64419.0,0.01525271]
[1728881538719,0.261931,64420.0,64419.0,0.01525271]
[1728881538940,0.1067,64420.0,64419.0,0.01525271]
[1728881539372,0.1067,64420.0,64419.0,0.17048571]
[1728881539590,0.1067,64420.0,64419.0,0.21404396]
[1728881539820,0.1067,64420.0,64419.0,0.03011496]
[1728881540034,0.1077,64420.0,64419.0,0.04011496]
[1728881540249,0.001,64420.0,64419.0,0.19534796]
[1728881541346,0.001,64420.0,64419.0,0.52831387]
[1728881542283,0.001,64420.0,64419.0,0.54420463]
[1728881543347,0.001,64420.0,64419.0,0.54420222]
[1728881543558,0.001,64420.0,64419.0,0.40315915]
[1728881543810,0.001,64420.0,64419.0,0.54420222]
[1728881544038,0.001,64420.0,64419.0,0.52831146]
[1728881544255,0.08057814,64432.0,64431.0,0.155204]
[1728881544503,0.08057814,64432.0,64431.0,0.17045671]
[1728881544711,0.08057814,64432.0,64431.0,0.18323044]
[1728881544954,0.08057814,64432.0,64431.0,0.19295283]
[1728881545173,0.37682321,64432.0,64431.0,0.02802644]
[1728881545393,0.37682321,64432.0,64431.0,0.01277373]
[1728881545605,0.49392321,64432.0,64431.0,0.001]
[1728881545826,0.65514722,64432.0,64431.0,0.001]
[1728881546038,0.1071,64427.0,64419.0,0.001644]
[1728881546289,0.30876262,64425.0,64424.0,0.23275842]
[1728881546513,0.155228,64421.0,64420.0,0.01284312]
[1728881546727,0.29627407,64420.0,64419.0,0.001644]
[1728881547413,0.37517407,64420.0,64419.0,0.001644]
[1728881548099,0.64279808,64420.0,64419.0,0.002644]
[1728881548318,0.68923795,64420.0,64419.0,0.002644]
[1728881548767,0.68923795,64420.0,64419.0,0.001644]
[1728881548987,0.69723795,64420.0,64419.0,0.002644]
[1728881549205,0.69523795,64420.0,64419.0,0.004644]
[1728881549419,0.70023795,64420.0,64419.0,0.004644]
[1728881549867,0.65379808,64420.0,64419.0,0.004644]
[1728881550147,0.65379808,64420.0,64417.0,0.001644]
[1728881550148,0.185236,64418.0,64417.0,0.001644]
[1728881550382,0.7020815,64418.0,64417.0,0.001644]
[1728881550597,0.94140111,64418.0,64417.0,0.001644]
[1728881550828,0.94140111,64418.0,64411.0,0.001644]
[1728881550829,0.16225,64412.0,64411.0,0.001644]
[1728881551050,0.91066015,64412.0,64411.0,0.001644]
[1728881551283,0.155274,64402.0,64400.0,0.001644]
[1728881551546,0.66764108,64402.0,64400.0,0.001644]
[1728881551771,0.467377,64401.0,64400.0,0.001644]
[1728881551995,0.48663907,64393.0,64384.0,0.23440242]
[1728881552251,0.64786308,64393.0,64384.0,0.23440242]
[1728881552468,0.155315,64385.0,64384.0,0.23440242]
[1728881552933,0.155315,64385.0,64384.0,0.01279845]
[1728881553483,0.155315,64385.0,64384.0,0.001644]
[1728881553703,0.2888522,64385.0,64384.0,0.001644]
[1728881553923,0.346315,64385.0,64384.0,0.001644]
[1728881555071,0.51253901,64385.0,64384.0,0.003644]
[1728881555308,0.51353901,64385.0,64384.0,0.012644]
[1728881555525,0.51253901,64385.0,64384.0,0.003644]
[1728881555743,0.51253901,64385.0,64384.0,0.001644]
[1728881555955,0.51353901,64385.0,64384.0,0.010644]
[1728881556173,0.51051788,64385.0,64384.0,0.001644]
[1728881556821,0.67689967,64385.0,64384.0,0.001644]
[1728881557518,0.67589967,64385.0,64384.0,0.001644]
[1728881557979,0.67889967,64385.0,64384.0,0.001644]
[1728881558868,0.36438179,64385.0,64384.0,0.001644]
[1728881559074,0.37365372,64385.0,64384.0,0.001644]
[1728881559281,0.51469679,64385.0,64384.0,0.001644]
[1728881559492,0.51469679,64385.0,64384.0,0.005644]
[1728881559713,0.7039208,64385.0,64384.0,0.005644]
[1728881561694,0.7059208,64385.0,64384.0,0.005644]
[1728881561930,0.7039208,64385.0,64384.0,0.005644]
[1728881562166,0.7039208,64385.0,64378.0,0.000822]
[1728881562167,0.28332,64383.0,64378.0,0.000822]
[1728881562396,0.75135889,64383.0,64378.0,0.000822]
[1728881562637,1.24929525,64383.0,64378.0,0.000822]
[1728881563279,1.25129525,64383.0,64378.0,0.000822]
[1728881563500,1.25729525,64383.0,64382.0,0.001822]
[1728881563931,1.25729525,64383.0,64382.0,0.000822]
[1728881563932,1.24929525,64383.0,64382.0,0.000822]
[1728881564154,1.26029525,64383.0,64382.0,0.001822]
[1728881564607,1.27429525,64383.0,64382.0,0.001822]
[1728881565984,1.27629525,64383.0,64382.0,0.001822]
[1728881566751,1.30063718,64383.0,64382.0,0.001822]
[1728881566954,1.30063718,64383.0,64378.0,0.000822]
[1728881566955,0.7288525,64379.0,64378.0,0.000822]
[1728881567167,0.91307651,64379.0,64378.0,0.000822]
[1728881567387,0.00493636,64375.0,64374.0,0.000823]
[1728881567599,0.28128536,64371.0,64370.0,0.000823]
[1728881567834,0.85751199,64371.0,64370.0,0.000823]
[1728881568051,0.88385689,64371.0,64370.0,0.000823]
[1728881568495,0.88385689,64371.0,64359.0,0.23275842]
[1728881568496,0.50535543,64360.0,64359.0,0.23275842]
[1728881568713,0.66657944,64360.0,64359.0,0.23275842]
[1728881569161,0.66657944,64360.0,64354.0,0.001644]
[1728881569162,0.155388,64355.0,64354.0,0.001644]
[1728881569414,0.45765508,64355.0,64354.0,0.00651219]
[1728881569957,0.88600422,64355.0,64354.0,0.00651219]
[1728881570209,1.06990422,64355.0,64354.0,0.001644]
[1728881570846,1.07890422,64355.0,64354.0,0.001644]
[1728881571266,1.06990422,64355.0,64354.0,0.001644]
[1728881571684,1.08390422,64355.0,64354.0,0.001644]
[1728881572097,1.06990422,64355.0,64354.0,0.001644]
[1728881572546,1.09790422,64355.0,64354.0,0.001644]
[1728881572798,1.08390422,64355.0,64354.0,0.001644]
[1728881573279,1.09790422,64355.0,64354.0,0.001644]
[1728881574202,1.08390422,64355.0,64354.0,0.00651296]
[1728881574430,1.06990422,64355.0,64354.0,0.00651296]
[1728881574652,1.08390422,64355.0,64354.0,0.00651296]
[1728881575319,1.08390422,64355.0,64337.0,0.23275842]
[1728881575320,0.50168643,64347.0,64337.0,0.23275842]
[1728881575560,0.49970843,64338.0,64337.0,0.23275842]
[1728881575812,0.49970843,64338.0,64337.0,0.25029013]
[1728881576027,0.49970843,64338.0,64337.0,0.01753171]
[1728881576495,0.49677207,64338.0,64337.0,0.01753171]
[1728881576707,0.524065,64338.0,64337.0,0.01753171]
[1728881577155,0.53524594,64338.0,64337.0,0.01753171]
[1728881577375,0.63388581,64338.0,64337.0,0.04210611]
[1728881577603,1.13388581,64338.0,64337.0,0.02698305]
[1728881578529,1.14788581,64338.0,64337.0,0.02698305]
[1728881578961,1.11988581,64338.0,64337.0,0.02698305]
[1728881579178,1.13588581,64338.0,64337.0,0.02698305]
[1728881579417,1.28292888,64338.0,64337.0,0.02698305]
[1728881579635,1.27492888,64338.0,64337.0,0.02698305]
[1728881579857,1.28992888,64338.0,64337.0,0.01753171]
[1728881580504,0.26969436,64326.0,64325.0,0.00110569]
[1728881580711,0.15839636,64325.0,64324.0,0.2397435]
[1728881580947,0.31962037,64325.0,64324.0,0.25489202]
[1728881581157,0.31962037,64325.0,64324.0,0.0221336]
[1728881581374,0.34398073,64325.0,64324.0,0.0316057]
[1728881582252,0.34398073,64325.0,64324.0,0.0505428]
[1728881582253,0.35198073,64325.0,64324.0,0.0505428]
[1728881582924,0.35298073,64325.0,64324.0,0.0513658]
[1728881583577,0.35004437,64325.0,64324.0,0.0513658]
[1728881583790,0.32568401,64325.0,64324.0,0.0513658]
[1728881584000,0.32862037,64325.0,64324.0,0.0513658]
[1728881584652,0.32568401,64325.0,64324.0,0.0513658]
[1728881584863,0.32862037,64325.0,64324.0,0.0513658]
[1728881585500,0.32568401,64325.0,64324.0,0.0513658]
[1728881586363,0.16446,64325.0,64324.0,0.0513658]
[1728881586817,0.18882089,64325.0,64324.0,0.0513658]
[1728881587248,0.18882089,64325.0,64324.0,0.05623598]
[1728881587476,0.03336089,64325.0,64324.0,0.05623598]
[1728881587692,0.18882089,64325.0,64324.0,0.05623598]
[1728881587910,0.18882089,64325.0,64324.0,0.05725091]
[1728881588197,0.3500449,64325.0,64324.0,0.05623598]
[1728881588655,0.3500449,64325.0,64324.0,0.02241916]
[1728881588865,0.18882089,64325.0,64324.0,0.06599073]
[1728881589088,0.18882089,64325.0,64324.0,0.07516394]
[1728881589307,0.18882089,64325.0,64324.0,0.07617919]
[1728881589514,0.18882089,64325.0,64324.0,0.06700562]
[1728881589742,0.18882089,64325.0,64324.0,0.06599037]
[1728881590173,0.18882089,64325.0,64324.0,0.06700562]
[1728881590383,0.18882089,64325.0,64324.0,0.06599037]
[1728881590604,0.3500449,64325.0,64324.0,0.07479821]
[1728881590828,0.37598126,64325.0,64324.0,0.07378367]
[1728881591055,0.56988126,64325.0,64324.0,0.07378367]
[1728881591285,0.56988126,64325.0,64324.0,0.07378438]
[1728881591505,0.56988126,64325.0,64324.0,0.02047162]
[1728881591727,0.56988126,64325.0,64324.0,0.06411121]
[1728881593750,0.54552037,64325.0,64324.0,0.06411121]
[1728881596148,0.51045234,64325.0,64324.0,0.06411121]
[1728881596784,0.53481335,64325.0,64324.0,0.06411121]
[1728881597450,0.53481335,64325.0,64324.0,0.07992408]
[1728881598298,0.53481335,64325.0,64324.0,0.07593696]
[1728881601848,0.53481335,64325.0,64324.0,0.02898342]
[1728881602098,0.53481335,64325.0,64324.0,0.06434413]
[1728881602334,0.53481335,64325.0,64324.0,0.07600413]
[1728881602749,0.53481335,64325.0,64324.0,0.06435475]
[1728881602961,0.53481335,64325.0,64324.0,0.07600797]
[1728881603172,0.53187699,64325.0,64324.0,0.06435475]
[1728881603881,0.50751598,64325.0,64324.0,0.06435475]
[1728881604537,0.50951598,64325.0,64324.0,0.06435475]
[1728881604974,0.50751598,64325.0,64324.0,0.06435475]
[1728881605642,0.50751598,64325.0,64324.0,0.00780808]
[1728881605889,0.50751598,64325.0,64324.0,0.0375133]
[1728881606102,0.50751598,64325.0,64324.0,0.06441098]
[1728881606326,0.50751598,64325.0,64324.0,0.08033239]
[1728881606536,0.50751598,64325.0,64324.0,0.06441098]
[1728881606537,0.50916398,64325.0,64324.0,0.06441098]
[1728881606755,0.53352474,64325.0,64324.0,0.06441098]
[1728881607663,0.53352474,64325.0,64324.0,0.08033686]
[1728881608153,0.42152474,64325.0,64324.0,0.08033686]
[1728881608384,0.42152474,64325.0,64324.0,0.06441098]
[1728881609215,0.39852474,64325.0,64324.0,0.06441098]
[1728881609449,0.39852474,64325.0,64324.0,0.0644101]
[1728881612888,0.89852474,64325.0,64324.0,0.0644101]
[1728881613146,0.89852474,64325.0,64324.0,0.04532799]
[1728881613601,0.87416398,64325.0,64324.0,0.04532799]
[1728881613851,0.87416398,64325.0,64324.0,0.06444972]
[1728881614268,0.87416398,64325.0,64324.0,0.045328]
[1728881615638,0.79226398,64325.0,64324.0,0.045328]
[1728881615876,0.79226398,64325.0,64324.0,0.0644494]
[1728881616111,0.79226398,64325.0,64324.0,0.045328]
[1728881616576,0.81662419,64325.0,64324.0,0.045328]
[1728881617046,0.81662419,64325.0,64324.0,0.0453275]
[1728881617275,0.81662419,64325.0,64324.0,0.03753516]
[1728881617510,0.86298409,64325.0,64324.0,0.03753516]
[1728881617735,0.81662419,64325.0,64324.0,0.02223839]
[1728881617987,0.65540018,64325.0,64324.0,0.03753446]
[1728881618213,0.70183619,64325.0,64324.0,0.02223839]
[1728881619292,0.65540018,64325.0,64324.0,0.02223839]
[1728881619770,0.65540018,64325.0,64324.0,0.01736818]
[1728881620015,0.70186101,64325.0,64324.0,0.02223837]
[1728881620272,0.72505419,64325.0,64324.0,0.01736818]
[1728881620777,0.65540018,64325.0,64324.0,0.01736818]
[1728881621012,0.82015874,64325.0,64324.0,0.01736818]
[1728881621260,0.93624876,64325.0,64324.0,0.00780808]
[1728881621509,0.89845874,64325.0,64324.0,0.00780808]
[1728881621993,1.01469972,64325.0,64324.0,0.00780808]
[1728881622259,1.05968275,64325.0,64324.0,0.00780808]
[1728881622766,1.05945661,64325.0,64324.0,0.00780808]
[1728881623697,1.15137348,64325.0,64324.0,0.00780808]
[1728881623918,1.0350964,64325.0,64324.0,0.00780808]
[1728881626670,1.05945684,64325.0,64324.0,0.00780808]
[1728881630680,1.06945684,64325.0,64324.0,0.00780808]
[1728881632002,1.07040317,64325.0,64324.0,0.00780808]
[1728881633299,0.90917916,64325.0,64324.0,0.00780808]
[1728881633735,0.88481872,64325.0,64324.0,0.00780808]
[1728881636418,0.80651872,64325.0,64324.0,0.00780808]
[1728881636655,0.83094196,64325.0,64324.0,0.00780808]
[1728881640854,0.83070459,64325.0,64324.0,0.00780808]
[1728881641844,0.92597442,64325.0,64324.0,0.00780808]
[1728881642160,1.26969843,64325.0,64324.0,0.00780808]
[1728881642344,1.38996826,64325.0,64324.0,0.00780808]
[1728881642583,1.64809137,64325.0,64324.0,0.00780808]
[1728881642859,1.49290462,64325.0,64324.0,0.00780808]
[1728881643319,0.55837819,64320.0,64319.0,0.001646]
[1728881643545,0.88490661,64320.0,64319.0,0.001646]
[1728881643984,0.93114583,64320.0,64319.0,0.001646]
[1728881644217,0.76584142,64320.0,64319.0,0.001646]
[1728881645370,0.92988301,64320.0,64319.0,0.001646]
[1728881645586,0.93888301,64320.0,64319.0,0.001646]
[1728881645813,0.95288301,64320.0,64319.0,0.002646]
[1728881646034,0.94388301,64320.0,64319.0,0.002646]
[1728881646273,1.095589,64320.0,64319.0,0.002646]
[1728881646490,0.94388301,64320.0,64319.0,0.002646]
[1728881646722,0.94524789,64320.0,64319.0,0.002646]
[1728881647374,0.94024789,64320.0,64319.0,0.001646]
[1728881647596,0.95424789,64320.0,64319.0,0.002646]
[1728881648082,1.07995057,64320.0,64319.0,0.001646]
[1728881648294,1.07995992,64320.0,64319.0,0.001646]
[1728881648514,0.97724789,64320.0,64319.0,0.002646]
[1728881649162,1.11695992,64320.0,64319.0,0.002646]
[1728881649378,1.1169339,64320.0,64319.0,0.002646]
[1728881650308,0.97724789,64320.0,64319.0,0.002646]
[1728881650544,1.1169339,64320.0,64319.0,0.002646]
[1728881651025,0.97724789,64320.0,64319.0,0.002646]
[1728881652124,1.1189339,64320.0,64319.0,0.002646]
[1728881652354,1.1169339,64320.0,64319.0,0.002646]
[1728881652789,1.11702102,64320.0,64319.0,0.002646]
[1728881653468,1.27839073,64320.0,64319.0,0.002646]
[1728881653724,1.25602585,64320.0,64319.0,0.002646]
[1728881653958,1.11402429,64320.0,64319.0,0.002646]
[1728881654405,1.27121392,64320.0,64319.0,0.002646]
[1728881654839,1.11402429,64320.0,64319.0,0.002646]
[1728881655526,1.2711171,64320.0,64319.0,0.002646]
[1728881655756,1.11402429,64320.0,64319.0,0.002646]
[1728881656481,0.95265458,64320.0,64319.0,0.002646]
[1728881656701,0.95265458,64320.0,64317.0,0.000823]
[1728881656702,0.00493636,64318.0,64317.0,1e-06]
[1728881656921,0.00493636,64318.0,64309.0,0.000823]
[1728881656922,0.36703236,64310.0,64309.0,0.000823]
[1728881657138,0.92155517,64310.0,64309.0,0.000823]
[1728881657359,1.02045361,64310.0,64309.0,0.000823]
[1728881657625,1.01845361,64310.0,64309.0,0.000823]
[1728881657821,0.83157858,64310.0,64309.0,0.000823]
[1728881658050,0.95594659,64310.0,64309.0,0.000823]
[1728881658300,0.95794659,64310.0,64309.0,0.000823]
[1728881658518,0.95594659,64310.0,64309.0,0.000823]
[1728881658745,1.47194659,64310.0,64309.0,0.001823]
[1728881659664,1.53434513,64310.0,64309.0,0.001823]
[1728881659888,1.62152871,64310.0,64309.0,0.001823]
[1728881660125,1.46794659,64310.0,64309.0,0.000823]
[1728881660344,0.34243,64296.0,64295.0,0.23275842]
[1728881660572,0.98236392,64296.0,64295.0,0.23275842]
[1728881660785,0.155545,64290.0,64289.0,0.000823]
[1728881660999,0.45827806,64290.0,64289.0,0.000823]
[1728881661885,0.31676901,64290.0,64289.0,0.000823]
[1728881663208,0.33376901,64290.0,64289.0,0.000823]
[1728881663438,0.33076901,64290.0,64289.0,0.000823]
[1728881663661,0.31676901,64290.0,64289.0,0.000823]
[1728881663891,0.155545,64290.0,64289.0,0.000823]
[1728881664175,0.163545,64290.0,64289.0,0.000823]
[1728881664399,0.008,64290.0,64289.0,0.000823]
[1728881664626,0.155541,64292.0,64289.0,0.000823]
[1728881664841,0.160545,64290.0,64289.0,0.000823]
[1728881665970,0.161545,64290.0,64289.0,0.000823]
[1728881666206,0.160545,64290.0,64289.0,0.000823]
[1728881666672,0.17991727,64290.0,64289.0,0.000823]
[1728881666905,0.18291727,64290.0,64289.0,0.000823]
[1728881668074,0.34414128,64290.0,64289.0,0.000823]
[1728881669001,0.18291727,64290.0,64289.0,0.000823]
[1728881670892,0.18291727,64290.0,64289.0,0.00947034]
[1728881671115,0.18291727,64290.0,64289.0,0.000823]
[1728881673836,0.158545,64290.0,64289.0,0.000823]
[1728881674058,0.46127806,64290.0,64289.0,0.000823]
[1728881674306,0.54317806,64290.0,64289.0,0.000823]
[1728881676240,0.40166901,64290.0,64289.0,0.000823]
[1728881676660,0.42604198,64290.0,64289.0,0.000823]
[1728881677743,0.26481797,64290.0,64289.0,0.000823]
[1728881677959,0.18291797,64290.0,64289.0,0.000823]
[1728881680868,0.02737297,64290.0,64289.0,0.00288664]
[1728881681316,0.02737297,64290.0,64289.0,0.169304]
[1728881681544,0.02737297,64290.0,64289.0,0.01243007]
[1728881681766,0.02737297,64290.0,64289.0,0.02817277]
[1728881681993,0.02737297,64290.0,64289.0,0.01730241]
[1728881682215,0.52090603,64290.0,64289.0,0.02123679]
[1728881682431,0.74827544,64290.0,64289.0,0.01169336]
[1728881682644,0.69945103,64290.0,64289.0,0.000823]
[1728881683718,0.67507806,64290.0,64289.0,0.000823]
[1728881685060,1.03480732,64290.0,64289.0,0.000823]
[1728881685297,0.94181595,64290.0,64289.0,0.000823]
[1728881685519,1.03489106,64290.0,64289.0,0.000823]
[1728881685741,0.94181595,64290.0,64289.0,0.000823]
[1728881685977,0.93881595,64290.0,64289.0,0.000823]
[1728881686202,0.94681595,64290.0,64289.0,0.000823]
[1728881686437,1.04588384,64290.0,64289.0,0.000823]
[1728881686708,0.85881883,64290.0,64289.0,0.000823]
[1728881686939,0.88319489,64290.0,64289.0,0.000823]
[1728881687207,0.89719489,64290.0,64289.0,0.000823]
[1728881687422,0.87419489,64290.0,64289.0,0.000823]
[1728881687634,0.86019489,64290.0,64289.0,0.000823]
[1728881688105,0.87419489,64290.0,64289.0,0.000823]
[1728881688321,0.86022145,64290.0,64289.0,0.000823]
[1728881688763,0.79839048,64290.0,64289.0,0.000823]
[1728881688990,0.86819872,64290.0,64289.0,0.000823]
[1728881689211,0.79839048,64290.0,64289.0,0.000823]
[1728881690093,0.86819733,64290.0,64289.0,0.000823]
[1728881690350,0.79839048,64290.0,64289.0,0.000823]
[1728881690847,0.86818738,64290.0,64289.0,0.000823]
[1728881691079,0.79839048,64290.0,64289.0,0.000823]
[1728881692204,0.60047822,64290.0,64289.0,0.000823]
[1728881692435,0.70192106,64290.0,64289.0,0.000823]
[1728881692880,0.677545,64290.0,64289.0,0.000823]
[1728881693318,0.663545,64290.0,64289.0,0.000823]
[1728881693530,0.83176901,64290.0,64289.0,0.000823]
[1728881693965,0.155573,64279.0,64273.0,0.155584]
[1728881694213,0.155573,64279.0,64272.0,0.000823]
[1728881694214,0.311124,64283.0,64276.0,0.01442601]
[1728881694438,0.15557,64280.0,64277.0,0.00955298]
[1728881694654,0.155572,64279.0,64278.0,0.02483835]
[1728881694909,0.155561,64284.0,64278.0,0.19634118]
[1728881695120,0.155566,64282.0,64279.0,0.02971141]
[1728881695329,0.155566,64281.0,64280.0,0.02971141]
[1728881695540,0.155566,64281.0,64280.0,0.040723]
[1728881696248,0.17994082,64281.0,64280.0,0.040723]
[1728881696669,0.17994082,64281.0,64280.0,0.02971141]
[1728881697098,0.18094082,64281.0,64280.0,0.03071141]
[1728881698161,0.18094082,64281.0,64280.0,0.01642604]
[1728881698162,0.18194082,64281.0,64280.0,0.01642604]
[1728881698822,0.18194082,64281.0,64280.0,0.002]
[1728881699033,0.18194082,64281.0,64280.0,0.002822]
[1728881699683,0.18094082,64281.0,64280.0,0.001822]
[1728881699893,0.34516483,64281.0,64280.0,0.000822]
[1728881700129,0.39173327,64281.0,64280.0,0.000822]
[1728881700346,0.41501749,64281.0,64280.0,0.000822]
[1728881700559,0.6017122,64281.0,64280.0,0.000822]
[1728881700777,0.60165459,64281.0,64280.0,0.000822]
[1728881701000,0.60165383,64281.0,64280.0,0.000822]
[1728881701212,0.60165383,64281.0,64280.0,0.001822]
[1728881701471,0.50441001,64281.0,64280.0,0.001822]
[1728881701680,0.62096574,64281.0,64280.0,0.001822]
[1728881701896,0.50941001,64281.0,64280.0,0.001822]
[1728881702104,0.87877972,64281.0,64280.0,0.001822]
[1728881702332,0.71741001,64281.0,64280.0,0.001822]
[1728881702992,0.71241001,64281.0,64280.0,0.001822]
[1728881703204,0.56316483,64281.0,64280.0,0.000822]
[1728881703415,0.72608939,64281.0,64280.0,0.000822]
[1728881703851,0.70171457,64281.0,64280.0,0.000822]
[1728881704509,0.68771457,64281.0,64280.0,0.000822]